fUSD/lending_fUSD_20250720
["ID","MTS","AMOUNT","RATE_DAILY","PERIOD"]
[373573597,1753049442736,-405.49756699,0.00019178,2]
[373573600,1753049442749,-480.0,0.00019178,2]
[373573602,1753049442758,-480.0,0.00019178,2]
[373573604,1753049442768,-1555.81,0.00019178,2]
[373573606,1753049442777,-749.95,0.00019178,2]
[373573608,1753049442787,-1437.06,0.00019178,2]
[373573610,1753049442796,-403.47336067,0.00019178,2]
[373573612,1753049442805,-1178.48,0.00019178,2]
[373573614,1753049442814,-480.0,0.00019178,2]
[373573616,1753049442823,-480.0,0.00019178,2]
[373573618,1753049442832,-591.36,0.00019178,2]
[373573620,1753049442841,-480.0,0.00019178,2]
[373573622,1753049442850,-460.0,0.00019178,2]
[373573624,1753049442860,-151.0,0.00019178,2]
[373573626,1753049442869,-4146.06,0.00019178,2]
[373573628,1753049442879,-480.0,0.00019178,2]
[373573630,1753049442888,-480.0,0.00019178,2]
[373573632,1753049442897,-697.27,0.00019178,2]
[373573634,1753049442906,-480.0,0.00019178,2]
[373573636,1753049442915,-151.0,0.00019178,2]
[373573638,1753049442925,-775.75,0.00019178,2]
[373573640,1753049442937,-480.0,0.00019178,2]
[373573642,1753049442947,-480.0,0.00019178,2]
[373573644,1753049442956,-480.0,0.00019178,2]
[373573646,1753049442966,-2250.08,0.00019178,2]
[373573648,1753049442975,-2138.32,0.00019178,2]
[373573650,1753049442985,-3053.69,0.00019178,2]
[373573652,1753049442995,-151.0,0.00019178,2]
[373573654,1753049443004,-480.0,0.00019178,2]
[373573656,1753049443014,-480.0,0.00019178,2]
[373573658,1753049443023,-151.0,0.00019178,2]
[373573660,1753049443032,-535.3,0.00019178,2]
[373573662,1753049443042,-1885.31,0.00019178,2]
[373573664,1753049443051,-1237.69,0.00019178,2]
[373573666,1753049443060,-1175.39,0.00019178,2]
[373573668,1753049443070,-480.0,0.00019178,2]
[373573670,1753049443079,-480.0,0.00019178,2]
[373573672,1753049443088,-480.0,0.00019178,2]
[373573674,1753049443098,-1408.32,0.00019178,2]
[373573676,1753049443107,-2639.77,0.00019178,2]
[373573678,1753049443117,-480.0,0.00019178,2]
[373573680,1753049443126,-480.0,0.00019178,2]
[373573682,1753049443136,-480.0,0.00019178,2]
[373573684,1753049443145,-480.0,0.00019178,2]
[373573686,1753049443155,-480.0,0.00019178,2]
[373573688,1753049443165,-1841.6,0.00019178,2]
[373573690,1753049443174,-480.0,0.00019178,2]
[373573692,1753049443183,-480.0,0.00019178,2]
[373573695,1753049443193,-3554.0,0.00019178,2]
[373573697,1753049443202,-315.10342439,0.00019178,2]
[373573699,1753049443212,-480.0,0.00019178,2]
[373573701,1753049443221,-480.0,0.00019178,2]
[373573703,1753049443232,-480.0,0.00019178,2]
[373573705,1753049443241,-480.0,0.00019178,2]
[373573707,1753049443250,-480.0,0.00019178,2]
[373573709,1753049443260,-480.0,0.00019178,2]
[373573711,1753049443269,-560.0,0.00019178,2]
[373573713,1753049443279,-480.0,0.00019178,2]
[373573715,1753049443289,-1224.2,0.00019178,2]
[373573716,1753049443299,-480.0,0.00019178,2]
[373573719,1753049443309,-460.0,0.00019178,2]
[373573721,1753049443319,-460.0,0.00019178,2]
[373573723,1753049443328,-5887.34,0.00019178,2]
[373573725,1753049443337,-480.0,0.00019178,2]
[373573726,1753049443346,-1475.89,0.00019178,2]
[373573729,1753049443356,-1396.58,0.00019178,2]
[373573730,1753049443365,-480.0,0.00019178,2]
[373573732,1753049443374,-511.41,0.00019178,2]
[373573734,1753049443384,-460.0,0.00019178,2]
[373573736,1753049443394,-1365.0,0.00019178,2]
[373573738,1753049443403,-480.0,0.00019178,2]
[373573740,1753049443413,-1150.08,0.00019178,2]
[373573742,1753049443423,-480.0,0.00019178,2]
[373573745,1753049443432,-460.0,0.00019178,2]
[373573747,1753049443441,-480.0,0.00019178,2]
[373573749,1753049443450,-2757.53,0.00019178,2]
[373573751,1753049443459,-469.45284396,0.00019178,2]
[373573752,1753049443469,-480.0,0.00019178,2]
[373573755,1753049443479,-480.0,0.00019178,2]
[373573756,1753049443489,-420.0,0.00019178,2]
[373573759,1753049443499,-480.0,0.00019178,2]
[373573761,1753049443509,-482.02,0.00019178,2]
[373573763,1753049443518,-151.0,0.00019178,2]
[373573765,1753049443527,-480.0,0.00019178,2]
[373573766,1753049443536,-480.0,0.00019178,2]
[373573769,1753049443546,-480.0,0.00019178,2]
[373573771,1753049443555,-1439.48,0.00019178,2]
[373573772,1753049443565,-1744.01,0.00019178,2]
[373573775,1753049443575,-480.0,0.00019178,2]
[373573777,1753049443585,-480.0,0.00019178,2]
[373573778,1753049443594,-480.0,0.00019178,2]
[373573781,1753049443604,-480.0,0.00019178,2]
[373573782,1753049443614,-1168.98,0.00019178,2]
[373573785,1753049443624,-2837.64,0.00019178,2]
[373573787,1753049443634,-480.0,0.00019178,2]
[373573789,1753049443643,-480.0,0.00019178,2]
[373573790,1753049443652,-1648.83,0.00019178,2]
[373573791,1753049443662,-480.0,0.00019178,2]
[373573792,1753049443672,-480.0,0.00019178,2]
[373573793,1753049443682,-480.0,0.00019178,2]
[373573794,1753049443692,-480.0,0.00019178,2]
[373573795,1753049443702,-480.0,0.00019178,2]
[373573796,1753049443712,-7401.0,0.00019178,2]
[373573797,1753049443721,-473.03487918,0.00019178,2]
[373573798,1753049443731,-480.0,0.00019178,2]
[373573799,1753049443742,-480.0,0.00019178,2]
[373573800,1753049443751,-1322.54,0.00019178,2]
[373573801,1753049443761,-480.0,0.00019178,2]
[373573802,1753049443770,-480.0,0.00019178,2]
[373573804,1753049443780,-1972.57,0.00019178,2]
[373573806,1753049443789,-927.83,0.00019178,2]
[373573808,1753049443799,-480.0,0.00019178,2]
[373573810,1753049443808,-2589.61,0.00019178,2]
[373573812,1753049443817,-2835.66,0.00019178,2]
[373573814,1753049443826,-600.49,0.00019178,2]
[373573816,1753049443840,-4654.08,0.00019178,2]
[373573818,1753049443849,-2773.39,0.00019178,2]
[373573820,1753049443859,-480.0,0.00019178,2]
[373573822,1753049443868,-480.0,0.00019178,2]
[373573824,1753049443878,-21015.26,0.00019178,2]
[373573826,1753049443887,-480.0,0.00019178,2]
[373573828,1753049443896,-2587.27,0.00019178,2]
[373573830,1753049443906,-480.0,0.00019178,2]
[373573832,1753049443916,-500.0,0.00019178,2]
[373573834,1753049443925,-808.49,0.00019178,2]
[373573836,1753049443938,-237.43740879,0.00019178,2]
[373573838,1753049443948,-480.0,0.00019178,2]
[373573840,1753049443958,-480.0,0.00019178,2]
[373573842,1753049443967,-1438.31,0.00019178,2]
[373573844,1753049443977,-480.0,0.00019178,2]
[373573846,1753049443989,-1031.73,0.00019178,2]
[373573848,1753049443999,-581.84,0.00019178,2]
[373573850,1753049444009,-480.0,0.00019178,2]
[373573852,1753049444019,-480.0,0.00019178,2]
[373573854,1753049444028,-674.71,0.00019178,2]
[373573856,1753049444037,-480.01,0.00019178,2]
[373573858,1753049444046,-628.52,0.00019178,2]
[373573860,1753049444056,-480.0,0.00019178,2]
[373573862,1753049444066,-2598.91,0.00019178,2]
[373573864,1753049444075,-480.0,0.00019178,2]
[373573866,1753049444085,-480.0,0.00019178,2]
[373573868,1753049444094,-480.0,0.00019178,2]
[373573870,1753049444104,-151.0,0.00019178,2]
[373573872,1753049444113,-480.0,0.00019178,2]
[373573874,1753049444123,-654.61,0.00019178,2]
[373573876,1753049444132,-1738.83,0.00019178,2]
[373573878,1753049444142,-480.0,0.00019178,2]
[373573880,1753049444151,-480.0,0.00019178,2]
[373573882,1753049444160,-1637.86,0.00019178,2]
[373573884,1753049444170,-2683.84,0.00019178,2]
[373573886,1753049444179,-741.94,0.00019178,2]
[373573888,1753049444188,-572.51,0.00019178,2]
[373573890,1753049444198,-830.99,0.00019178,2]
[373573892,1753049444208,-443.13325638,0.00019178,2]
[373573894,1753049444217,-480.0,0.00019178,2]
[373573896,1753049444226,-480.0,0.00019178,2]
[373573898,1753049444236,-858.2,0.00019178,2]
[373573900,1753049444246,-480.0,0.00019178,2]
[373573901,1753049444256,-480.0,0.00019178,2]
[373573903,1753049444266,-3231.07,0.00019178,2]
[373573905,1753049444276,-151.0,0.00019178,2]
[373573907,1753049444286,-480.0,0.00019178,2]
[373573909,1753049444295,-4125.34,0.00019178,2]
[373573911,1753049444305,-480.0,0.00019178,2]
[373573913,1753049444314,-480.0,0.00019178,2]
[373573915,1753049444324,-500.0,0.00019178,2]
[373573917,1753049444333,-500.0,0.00019178,2]
[373573920,1753049444343,-500.0,0.00019178,2]
[373573922,1753049444353,-481.07825502,0.00019178,2]
[373573924,1753049444363,-151.0,0.00019178,2]
[373573925,1753049444372,-480.0,0.00019178,2]
[373573927,1753049444381,-480.0,0.00019178,2]
[373573930,1753049444391,-2238.96,0.00019178,2]
[373573932,1753049444400,-480.0,0.00019178,2]
[373573934,1753049444410,-460.0,0.00019178,2]
[373573936,1753049444419,-480.0,0.00019178,2]
[373573937,1753049444428,-480.0,0.00019178,2]
[373573940,1753049444438,-970.82,0.00019178,2]
[373573941,1753049444448,-803.0,0.00019178,2]
[373573944,1753049444458,-1740.61,0.00019178,2]
[373573946,1753049444467,-480.0,0.00019178,2]
[373573947,1753049444476,-480.0,0.00019178,2]
[373573949,1753049444487,-480.0,0.00019178,2]
[373573951,1753049444496,-2167.23,0.00019178,2]
[373573953,1753049444506,-480.0,0.00019178,2]
[373573956,1753049444516,-1069.37,0.00019178,2]
[373573958,1753049444526,-1232.14,0.00019178,2]
[373573960,1753049444536,-1428.65,0.00019178,2]
[373573962,1753049444545,-480.0,0.00019178,2]
[373573964,1753049444554,-605.09,0.00019178,2]
[373573966,1753049444563,-1824.87,0.00019178,2]
[373573967,1753049444573,-480.0,0.00019178,2]
[373573970,1753049444582,-480.0,0.00019178,2]
[373573971,1753049444591,-480.0,0.00019178,2]
[373573973,1753049444601,-480.0,0.00019178,2]
[373573975,1753049444610,-480.0,0.00019178,2]
[373573977,1753049444619,-1303.86,0.00019178,2]
[373573979,1753049444629,-480.0,0.00019178,2]
[373573982,1753049444639,-460.0,0.00019178,2]
[373573984,1753049444648,-480.0,0.00019178,2]
[373573986,1753049444657,-787.34,0.00019178,2]
[373573988,1753049444667,-607.86,0.00019178,2]
[373573990,1753049444676,-589.37,0.00019178,2]
[373573992,1753049444685,-460.0,0.00019178,2]
[373573994,1753049444694,-480.0,0.00019178,2]
[373573996,1753049444704,-1604.11,0.00019178,2]
[373573998,1753049444713,-1555.35,0.00019178,2]
[373574000,1753049444722,-480.0,0.00019178,2]
[373574002,1753049444732,-480.0,0.00019178,2]
[373574004,1753049444743,-480.0,0.00019178,2]
[373574006,1753049444752,-1825.18,0.00019178,2]
[373574008,1753049444762,-235.20973827,0.00019178,2]
[373574010,1753049444771,-480.0,0.00019178,2]
[373574012,1753049444782,-480.0,0.00019178,2]
[373574014,1753049444790,-155.971535,0.00019178,2]
[373574016,1753049444799,-993.34,0.00019178,2]
[373574018,1753049444809,-2519.45,0.00019178,2]
[373574020,1753049444820,-480.0,0.00019178,2]
[373574022,1753049444829,-766.63,0.00019178,2]
[373574024,1753049444838,-480.0,0.00019178,2]
[373574026,1753049444848,-151.0,0.00019178,2]
[373574028,1753049444857,-968.57,0.00019178,2]
[373574030,1753049444866,-1192.32,0.00019178,2]
[373574032,1753049444876,-7088.54,0.00019178,2]
[373574034,1753049444885,-589.22,0.00019178,2]
[373574036,1753049444894,-480.0,0.00019178,2]
[373574038,1753049444903,-480.0,0.00019178,2]
[373574040,1753049444912,-480.0,0.00019178,2]
[373574042,1753049444921,-43478.27,0.00019178,2]
[373574044,1753049444937,-480.0,0.00019178,2]
[373574046,1753049444946,-767.83,0.00019178,2]
[373574048,1753049444955,-552.15,0.00019178,2]
[373574050,1753049444965,-480.0,0.00019178,2]
[373574052,1753049444974,-440.0,0.00019178,2]
[373574054,1753049444985,-5198.88,0.00019178,2]
[373574056,1753049444994,-837.54,0.00019178,2]
[373574058,1753049445002,-1325.04,0.00019178,2]
[373574060,1753049445012,-480.0,0.00019178,2]
[373574062,1753049445022,-5439.37,0.00019178,2]
[373574064,1753049445031,-969.71,0.00019178,2]
[373574066,1753049445041,-151.0,0.00019178,2]
[373574068,1753049445051,-480.0,0.00019178,2]
[373574070,1753049445061,-480.0,0.00019178,2]
[373574073,1753049445071,-480.0,0.00019178,2]
[373574075,1753049445081,-480.0,0.00019178,2]
[373574077,1753049445092,-1464.33,0.00019178,2]
[373574079,1753049445102,-151.0,0.00019178,2]
[373574081,1753049445112,-3217.27,0.00019178,2]
[373574083,1753049445123,-480.0,0.00019178,2]
[373574085,1753049445132,-9093.08,0.00019178,2]
[373574087,1753049445143,-1494.52,0.00019178,2]
[373574089,1753049445153,-424.34837104,0.00019178,2]
[373574091,1753049445163,-8177.6,0.00019178,2]
[373574094,1753049445173,-480.0,0.00019178,2]
[373574096,1753049445183,-1160.71,0.00019178,2]
[373574098,1753049445194,-480.0,0.00019178,2]
[373574100,1753049445204,-480.0,0.00019178,2]
[373574102,1753049445214,-480.0,0.00019178,2]
[373574105,1753049445224,-1457.62,0.00019178,2]
[373574107,1753049445235,-480.0,0.00019178,2]
[373574109,1753049445247,-701.52,0.00019178,2]
[373574111,1753049445257,-151.0,0.00019178,2]
[373574113,1753049445268,-1583.68,0.00019178,2]
[373574115,1753049445278,-480.0,0.00019178,2]
[373574117,1753049445289,-460.0,0.00019178,2]
[373574119,1753049445300,-460.0,0.00019178,2]
[373574122,1753049445310,-480.0,0.00019178,2]
[373574124,1753049445321,-460.0,0.00019178,2]
[373574126,1753049445332,-151.0,0.00019178,2]
[373574128,1753049445342,-1323.02,0.00019178,2]
[373574131,1753049445352,-485.74880748,0.00019178,2]
[373574133,1753049445362,-1559.44,0.00019178,2]
[373574135,1753049445372,-480.0,0.00019178,2]
[373574137,1753049445382,-151.0,0.00019178,2]
[373574139,1753049445393,-500.0,0.00019178,2]
[373574141,1753049445403,-500.0,0.00019178,2]
[373574143,1753049445413,-2440.13,0.00019178,2]
[373574146,1753049445423,-957.42,0.00019178,2]
[373574148,1753049445433,-151.0,0.00019178,2]
[373574150,1753049445443,-423.98945443,0.00019178,2]
[373574152,1753049445453,-928.41,0.00019178,2]
[373574154,1753049445463,-480.0,0.00019178,2]
[373574156,1753049445473,-480.0,0.00019178,2]
[373574158,1753049445483,-480.0,0.00019178,2]
[373574160,1753049445496,-2382.02,0.00019178,2]
[373574162,1753049445507,-6926.49,0.00019178,2]
[373574165,1753049445517,-3849.84,0.00019178,2]
[373574167,1753049445527,-480.0,0.00019178,2]
[373574169,1753049445538,-480.0,0.00019178,2]
[373574171,1753049445548,-460.0,0.00019178,2]
[373574173,1753049445559,-151.0,0.00019178,2]
[373574175,1753049445568,-1000.16,0.00019178,2]
[373574177,1753049445579,-480.0,0.00019178,2]
[373574179,1753049445589,-480.0,0.00019178,2]
[373574181,1753049445599,-460.0,0.00019178,2]
[373574183,1753049445609,-151.0,0.00019178,2]
[373574185,1753049445619,-2821.16,0.00019178,2]
[373574187,1753049445629,-151.0,0.00019178,2]
[373574190,1753049445640,-554.46,0.00019178,2]
[373574192,1753049445650,-480.0,0.00019178,2]
[373574194,1753049445661,-1502.74,0.00019178,2]
[373574196,1753049445670,-2263.7,0.00019178,2]
[373574198,1753049445681,-1174.59,0.00019178,2]
[373574200,1753049445690,-1641.66,0.00019178,2]
[373574202,1753049445700,-271.03853578,0.00019178,2]
[373574204,1753049445710,-429.52466189,0.00019178,2]
[373574206,1753049445720,-3465.67,0.00019178,2]
[373574208,1753049445730,-480.0,0.00019178,2]
[373574210,1753049445743,-614.41,0.00019178,2]
[373574212,1753049445753,-480.0,0.00019178,2]
[373574214,1753049445763,-480.0,0.00019178,2]
[373574216,1753049445773,-480.0,0.00019178,2]
[373574219,1753049445783,-1970.54,0.00019178,2]
[373574221,1753049445793,-869.66,0.00019178,2]
[373574223,1753049445803,-500.0,0.00019178,2]
[373574225,1753049445813,-500.0,0.00019178,2]
[373574227,1753049445823,-480.0,0.00019178,2]
[373574229,1753049445833,-460.0,0.00019178,2]
[373574231,1753049445843,-480.0,0.00019178,2]
[373574233,1753049445853,-151.0,0.00019178,2]
[373574235,1753049445863,-480.0,0.00019178,2]
[373574237,1753049445873,-460.0,0.00019178,2]
[373574239,1753049445883,-480.0,0.00019178,2]
[373574241,1753049445894,-1504.67,0.00019178,2]
[373574243,1753049445904,-2627.68,0.00019178,2]
[373574245,1753049445914,-480.0,0.00019178,2]
[373574248,1753049445924,-151.0,0.00019178,2]
[373574250,1753049445938,-591.52474693,0.00019178,2]
[373574252,1753049445948,-1276.04,0.00019178,2]
[373574254,1753049445958,-920.58,0.00019178,2]
[373574256,1753049445968,-480.0,0.00019178,2]
[373574258,1753049445978,-680.19,0.00019178,2]
[373574260,1753049445990,-5059.9,0.00019178,2]
[373574262,1753049445999,-480.0,0.00019178,2]
[373574264,1753049446011,-480.0,0.00019178,2]
[373574266,1753049446021,-1026.67,0.00019178,2]
[373574268,1753049446031,-460.0,0.00019178,2]
[373574270,1753049446041,-480.0,0.00019178,2]
[373574272,1753049446051,-570.84,0.00019178,2]
[373574275,1753049446060,-460.0,0.00019178,2]
[373574277,1753049446070,-480.0,0.00019178,2]
[373574279,1753049446080,-480.0,0.00019178,2]
[373574281,1753049446092,-480.0,0.00019178,2]
[373574283,1753049446102,-6538.24,0.00019178,2]
[373574285,1753049446112,-2182.1,0.00019178,2]
[373574287,1753049446122,-874.2,0.00019178,2]
[373574289,1753049446132,-1575.73,0.00019178,2]
[373574291,1753049446142,-480.0,0.00019178,2]
[373574293,1753049446152,-480.0,0.00019178,2]
[373574295,1753049446162,-460.0,0.00019178,2]
[373574297,1753049446172,-2281.89,0.00019178,2]
[373574300,1753049446183,-2758.68,0.00019178,2]
[373574302,1753049446193,-151.0,0.00019178,2]
[373574304,1753049446203,-480.0,0.00019178,2]
[373574306,1753049446213,-480.0,0.00019178,2]
[373574308,1753049446224,-151.0,0.00019178,2]
[373574310,1753049446234,-710.81,0.00019178,2]
[373574312,1753049446245,-683.92,0.00019178,2]
[373574314,1753049446255,-480.0,0.00019178,2]
[373574316,1753049446266,-480.0,0.00019178,2]
[373574318,1753049446276,-1800.23,0.00019178,2]
[373574320,1753049446286,-440.0,0.00019178,2]
[373574322,1753049446296,-701.56,0.00019178,2]
[373574324,1753049446306,-480.0,0.00019178,2]
[373574326,1753049446316,-480.0,0.00019178,2]
[373574329,1753049446326,-480.0,0.00019178,2]
[373574331,1753049446336,-642.33,0.00019178,2]
[373574333,1753049446346,-151.0,0.00019178,2]
[373574335,1753049446356,-169.23,0.00019178,2]
[373574337,1753049446366,-3037.54,0.00019178,2]
[373574339,1753049446377,-23348.17242426,0.00019178,2]
[373574341,1753049446387,-594.66801964,0.00019187,2]
[373574343,1753049446397,-2255.97726446,0.00019187,2]
[373574345,1753049446408,-2337.48476527,0.00019199,2]
[373574347,1753049446418,-150.0,0.00019214,2]
[373574349,1753049446428,-150.0,0.00019216,2]
[373574351,1753049446438,-150.0,0.00019228,2]
[373574354,1753049446448,-214.64987423,0.00019233,2]
[373574356,1753049446458,-500.0,0.00019258,2]
[373574358,1753049446468,-500.0,0.00019258,2]
[373574360,1753049446478,-500.0,0.00019258,2]
[373574362,1753049446489,-500.0,0.00019258,2]
[373574364,1753049446499,-150.0,0.00019259,2]
[373574366,1753049446508,-150.238,0.00019259,2]
[373574368,1753049446518,-150.0,0.00019259,2]
[373574370,1753049446528,-279.286,0.00019259,2]
[373574372,1753049446538,-294.637,0.00019259,2]
[373574374,1753049446548,-150.0,0.00019259,2]
[373574377,1753049446558,-150.257,0.00019259,2]
[373574379,1753049446568,-159.076,0.00019259,2]
[373574381,1753049446578,-3352.0,0.00019259,2]
[373574383,1753049446587,-952.0,0.00019259,2]
[373574385,1753049446597,-1268.0,0.00019259,2]
[373574387,1753049446607,-807.0,0.00019259,2]
[373574389,1753049446616,-2017.0,0.00019259,2]
[373574391,1753049446626,-1687.0,0.00019259,2]
[373574393,1753049446636,-1287.0,0.00019259,2]
[373574395,1753049446646,-595.0,0.00019259,2]
[373574397,1753049446655,-562.0,0.00019259,2]
[373574399,1753049446665,-151.0,0.00019259,2]
[373574401,1753049446675,-151.0,0.00019259,2]
[373574403,1753049446684,-151.0,0.00019259,2]
[373574405,1753049446694,-151.0,0.00019259,2]
[373574407,1753049446703,-151.0,0.00019259,2]
[373574409,1753049446713,-151.0,0.00019259,2]
[373574411,1753049446723,-151.0,0.00019259,2]
[373574413,1753049446732,-151.0,0.00019259,2]
[373574415,1753049446744,-151.0,0.00019259,2]
[373574418,1753049446754,-213.073404,0.00019259,2]
[373574419,1753049446763,-151.354774,0.00019259,2]
[373574420,1753049446773,-151.0,0.00019259,2]
[373574421,1753049446783,-151.0,0.00019259,2]
[373574422,1753049446792,-179.102577,0.00019259,2]
[373574423,1753049446802,-151.0,0.00019259,2]
[373574424,1753049446812,-151.735375,0.00019259,2]
[373574425,1753049446822,-151.0,0.00019259,2]
[373574426,1753049446831,-151.0,0.00019259,2]
[373574427,1753049446841,-151.0,0.00019259,2]
[373574428,1753049446850,-151.241788,0.00019259,2]
[373574429,1753049446860,-151.0,0.00019259,2]
[373574430,1753049446870,-151.0,0.00019259,2]
[373574432,1753049446880,-151.0,0.00019259,2]
[373574434,1753049446890,-151.0,0.00019259,2]
[373574436,1753049446901,-175.117972,0.00019259,2]
[373574438,1753049446910,-151.0,0.00019259,2]
[373574440,1753049446920,-151.0,0.00019259,2]
[373574442,1753049446930,-151.0,0.00019259,2]
[373574444,1753049446944,-151.847327,0.00019259,2]
[373574446,1753049446953,-151.0,0.00019259,2]
[373574448,1753049446963,-362.404735,0.00019259,2]
[373574450,1753049446973,-362.404735,0.00019259,2]
[373574452,1753049446983,-224.878736,0.00019259,2]
[373574455,1753049446995,-224.878736,0.00019259,2]
[373574457,1753049447004,-151.0,0.00019259,2]
[373574459,1753049447014,-151.0,0.00019259,2]
[373574461,1753049447024,-151.0,0.00019259,2]
[373574463,1753049447034,-291.406142,0.00019259,2]
[373574465,1753049447044,-151.0,0.00019259,2]
[373574467,1753049447054,-151.0,0.00019259,2]
[373574469,1753049447064,-151.0,0.00019259,2]
[373574471,1753049447074,-151.0,0.00019259,2]
[373574473,1753049447085,-151.0,0.00019259,2]
[373574475,1753049447095,-151.0,0.00019259,2]
[373574477,1753049447105,-151.0,0.00019259,2]
[373574479,1753049447116,-151.0,0.00019259,2]
[373574481,1753049447126,-151.0,0.00019259,2]
[373574484,1753049447137,-2337.48476527,0.0001926,2]
[373574486,1753049447147,-150.0,0.0001926,4]
[373574488,1753049447157,-150.0,0.0001926,4]
[373574490,1753049447167,-172.40072471,0.0001926,4]
[373574492,1753049447177,-150.0,0.0001926,4]
[373574494,1753049447188,-206.51914368,0.0001926,4]
[373574496,1753049447198,-154.20834801,0.0001926,4]
[373574498,1753049447208,-150.0,0.0001926,4]
[373574500,1753049447218,-150.0,0.0001926,4]
[373574502,1753049447228,-215.11217994,0.00019261,2]
[373574504,1753049447239,-500.0,0.00019273,2]
[373574506,1753049447250,-500.93674537,0.00019273,2]
[373574508,1753049447260,-550.61161074,0.00019273,2]
[373574511,1753049447271,-500.0,0.00019273,2]
[373574513,1753049447282,-500.0,0.00019273,2]
[373574515,1753049447293,-400.39690325,0.00019273,2]
[373574517,1753049447303,-501.09030655,0.00019273,2]
[373574519,1753049447313,-501.173686,0.00019273,2]
[373574521,1753049447324,-500.0,0.00019273,2]
[373574523,1753049447334,-500.0,0.00019273,2]
[373574525,1753049447344,-500.0,0.00019273,2]
[373574528,1753049447355,-500.0,0.00019273,2]
[373574530,1753049447368,-500.0,0.00019273,2]
[373574532,1753049447378,-480.0,0.00019285,2]
[373574534,1753049447389,-490.0,0.00019285,2]
[373574536,1753049447400,-480.0,0.00019285,2]
[373574570,1753049447714,-480.0,0.00019285,2]
[373574574,1753049447734,-480.0,0.00019285,2]
[373574576,1753049447748,-480.0,0.00019285,2]
[373574578,1753049447756,-480.0,0.00019285,2]
[373574580,1753049447766,-461.6350367,0.00019285,2]
[373574582,1753049447776,-480.0,0.00019285,2]
[373574584,1753049447786,-480.0,0.00019285,2]
[373574586,1753049447796,-363.60922175,0.00019285,2]
[373574588,1753049447805,-480.0,0.00019285,2]
[373574590,1753049447814,-480.0,0.00019285,2]
[373574592,1753049447824,-480.0,0.00019285,2]
[373574594,1753049447833,-480.0,0.00019285,2]
[373574596,1753049447843,-480.0,0.00019285,2]
[373574598,1753049447853,-460.0,0.00019285,2]
[373574600,1753049447863,-480.0,0.00019285,2]
[373574602,1753049447872,-480.0,0.00019285,2]
[373574604,1753049447881,-480.0,0.00019285,2]
[373574606,1753049447891,-480.0,0.00019285,2]
[373574608,1753049447900,-455.23222623,0.00019285,2]
[373574610,1753049447910,-480.0,0.00019285,2]
[373574612,1753049447919,-1353.86,0.00019285,2]
[373574614,1753049447928,-2166.1,0.00019285,2]
[373574616,1753049447941,-151.0,0.00019285,2]
[373574618,1753049447950,-151.0,0.00019285,2]
[373574620,1753049447960,-531.01,0.00019285,2]
[373574622,1753049447969,-2521.57,0.00019285,2]
[373574624,1753049447980,-1059.84,0.00019285,2]
[373574626,1753049447991,-151.0,0.00019285,2]